bitfinex-derivatives/quotes_BNBF0:USTF0_20230901
["timestamp","ask_amount","ask_price","bid_price","bid_amount"]
[1693590953904,0.17346658,212.25,211.83,0.86729298]
[1693590954095,0.17346658,212.3,211.82,0.86729298]
[1693590954297,0.17346658,212.29,211.83,0.86724161]
[1693590954498,0.17346658,212.3,211.82,0.86724161]
[1693590954703,0.17346658,212.29,211.83,0.86723033]
[1693590954900,0.17346658,212.31,211.82,0.86723033]
[1693590955099,5.03700799,212.32,211.81,0.07671798]
[1693590955100,0.17346658,212.3,211.83,0.86722424]
[1693590955296,0.17346658,212.29,211.81,0.07671798]
[1693590955501,0.17346658,212.28,211.82,0.86721958]
[1693590955798,0.17346658,212.27,211.82,0.86721958]
[1693590955998,0.17346658,212.32,211.82,0.86721958]
[1693590956196,0.17346658,212.31,211.82,0.86721958]
[1693590956396,0.17346658,212.32,211.82,0.86721958]
[1693590956598,0.17346658,212.31,211.82,0.86721958]
[1693590956802,0.17346658,212.32,211.82,0.86721958]
[1693590956999,0.17346658,212.31,211.82,0.86721958]
[1693590957201,0.17346658,212.3,211.82,0.86721958]
[1693590957397,0.17346658,212.29,211.82,0.86721958]
[1693590957603,0.17346658,212.28,211.86,0.07671798]
[1693590957905,0.17346658,212.27,211.87,0.86721958]
[1693590958101,0.17346658,212.38,211.87,0.86721958]
[1693590958308,0.17346658,212.37,211.87,0.86721958]
[1693590958498,0.17346658,212.36,211.87,0.86721958]
[1693590958701,0.17346658,212.35,211.88,0.86721958]
[1693590958905,0.17346658,212.4,211.89,0.86721958]
[1693590959101,0.17346658,212.39,211.85,0.07671798]
[1693590959303,0.17346658,212.41,211.86,0.86693516]
[1693590959508,0.17346658,212.4,211.86,0.86693516]
[1693590959707,0.17346658,212.39,211.86,0.86693516]
[1693590959907,0.17346658,212.38,211.86,0.86693516]
[1693590960107,0.17346658,212.37,211.86,0.86693516]
[1693590960308,0.17346658,212.41,211.86,0.86693516]
[1693590960508,0.17346658,212.4,211.86,0.86693516]
[1693590960808,0.17346658,212.39,211.86,0.94365314]
[1693590961008,0.17346658,212.38,211.87,0.86693516]
[1693590961308,0.17346658,212.37,211.87,0.86693516]
[1693590961508,0.17346658,212.36,211.87,0.86693516]
[1693590961707,0.17346658,212.43,211.87,0.86693516]
[1693590961907,0.17346658,212.42,211.87,0.86693516]
[1693590962109,0.17346658,212.41,211.87,0.86693516]
[1693590962310,0.17346658,212.4,211.87,0.86693516]
[1693590962609,0.17346658,212.39,211.87,0.86693516]
[1693590962808,0.17346658,212.46,211.86,0.86693516]
[1693590963411,0.17346658,212.46,211.87,0.86693516]
[1693590963710,0.17346658,212.46,211.88,0.86693516]
[1693590963906,0.17346658,212.46,211.89,0.86693516]
[1693590964111,0.17346658,212.46,211.84,0.86693516]
[1693590964308,0.17346658,212.46,211.85,0.86693516]
[1693590964611,0.17346658,212.46,211.86,0.86693516]
[1693590964806,0.17346658,212.45,211.87,0.86693516]
[1693590965005,0.17346658,212.44,211.88,0.86693516]
[1693590965207,0.17346658,212.47,211.84,0.86693516]
[1693590965408,0.17346658,212.46,211.85,0.86693516]
[1693590965607,0.17346658,212.47,211.84,0.86693516]
[1693590965807,0.17346658,212.47,211.83,0.07671798]
[1693590965808,0.17346658,212.46,211.85,0.86693516]
[1693590966009,0.17346658,212.45,211.86,0.86693516]
[1693590966210,0.17346658,212.47,211.84,0.86693516]
[1693590966406,0.17346658,212.46,211.85,0.86693516]
[1693590966613,0.17346658,212.47,211.84,0.86693516]
[1693590966808,0.17346658,212.46,211.85,0.86693516]
[1693590967008,0.17346658,212.45,211.86,0.86693516]
[1693590967213,0.17346658,212.48,211.84,0.86693516]
[1693590967410,0.17346658,212.47,211.85,0.86693516]
[1693590967610,0.17346658,212.49,211.84,0.86693516]
[1693590967810,0.17346658,212.48,211.85,0.86693516]
[1693590968015,0.17346658,212.49,211.84,0.86693516]
[1693590968209,5.03700799,212.5,211.85,0.86693516]
[1693590968210,0.17346658,212.48,211.85,0.86693516]
[1693590968414,0.17346658,212.47,211.86,0.86693516]
[1693590968614,0.17346658,212.46,211.87,0.86693516]
[1693590968810,0.17346658,212.49,211.84,0.86693516]
[1693590969128,0.17346658,212.48,211.85,0.86693516]
[1693590969311,5.03700799,212.5,211.86,0.86693516]
[1693590969312,0.17346658,212.49,211.86,0.86693516]
[1693590969617,0.17346658,212.48,211.87,0.86693516]
[1693590969816,0.17346658,212.47,211.88,0.86693516]
[1693590970115,0.17346658,212.46,211.89,0.86693516]
[1693590970316,0.17346658,212.45,211.9,0.86693516]
[1693590970513,0.17346658,212.5,211.91,0.86693516]
[1693590970717,0.17346658,212.49,211.92,0.86693516]
[1693590970913,0.17346658,212.51,211.85,0.07671798]
[1693590971219,0.17346658,212.5,211.86,0.8668809]
[1693590971413,0.17346658,212.49,211.86,0.8668809]
[1693590971716,0.17346658,212.48,211.86,0.8668809]
[1693590971910,0.17346658,212.47,211.86,0.8668809]
[1693590972215,0.17346658,212.46,211.86,0.8668809]
[1693590972416,0.17346658,212.45,211.86,0.8668809]
[1693590972615,0.17346658,212.44,211.86,0.8668809]
[1693590972812,0.17346658,212.43,211.86,0.8668809]
[1693590973015,0.17346658,212.42,211.86,0.8668809]
[1693590973216,0.17346658,212.53,211.86,0.8668809]
[1693590973417,0.17346658,212.52,211.86,0.94359888]
[1693590973612,0.17346658,212.51,211.87,0.8668809]
[1693590973814,0.17346658,212.54,211.87,0.8668809]
[1693590974021,0.17346658,212.53,211.87,0.94359888]
[1693590974216,5.03700799,212.56,211.88,0.8668809]
[1693590974217,0.17346658,212.52,211.88,0.8668809]
[1693590974418,0.17346658,212.55,211.88,0.8668809]
[1693590974616,0.17346658,212.54,211.88,0.8668809]
[1693590975322,0.17346658,212.55,211.89,0.8668809]
[1693590975621,0.17346658,212.54,211.92,0.07671798]
[1693590975822,0.17346658,212.61,211.93,0.8668809]
[1693590976124,0.17346658,212.6,211.93,0.8668809]
[1693590976421,0.17346658,212.59,211.93,0.8668809]
[1693590976621,0.17346658,212.58,211.93,0.94359888]
[1693590976820,0.17346658,212.57,211.94,0.8668809]
[1693590977020,0.17346658,212.6,211.94,0.8668809]
[1693590977220,0.17346658,212.59,211.94,0.8668809]
[1693590977421,0.17346658,212.58,211.94,0.8668809]
[1693590977616,0.17346658,212.57,211.94,0.8668809]
[1693590977821,0.17346658,212.62,211.94,0.8668809]
[1693590978020,0.17346658,212.61,211.95,0.8668809]
[1693590978216,0.17346658,212.6,211.96,0.8668809]
[1693590978416,0.17346658,212.64,211.94,0.8668809]
[1693590978617,0.17346658,212.63,211.95,0.8668809]
[1693590978820,0.17346658,212.64,211.94,0.8668809]
[1693590979120,0.17346658,212.63,211.95,0.8668809]
[1693590979322,0.17346658,212.62,211.96,0.8668809]
[1693590979522,5.03700799,212.66,211.97,0.8668809]
[1693590979523,0.17346658,212.61,211.97,0.8668809]
[1693590979822,7.05181119,212.69,211.98,0.8668809]
[1693590979823,0.17346658,212.6,211.98,0.8668809]
[1693590980124,0.17346658,212.59,211.99,0.8668809]
[1693590980423,0.17346658,212.58,212.0,0.8668809]
[1693590980619,0.17346658,212.64,212.01,0.8668809]
[1693590980822,0.17346658,212.63,211.93,0.8668809]
[1693590981025,0.17346658,212.64,211.94,0.86657735]
[1693590981223,0.17346658,212.62,211.93,0.86657735]
[1693590981417,0.17346658,212.61,211.93,0.86657735]
[1693590981617,0.17346658,212.66,211.93,0.86657735]
[1693590981822,0.17346658,212.65,211.93,0.94329533]
[1693590982023,0.17346658,212.65,211.94,0.86657735]
[1693590982621,0.17346658,212.64,211.94,0.86657735]
[1693590982826,5.03700799,212.67,211.94,0.86657735]
[1693590982827,0.17346658,212.66,211.94,0.86657735]
[1693590983028,0.17346658,212.66,211.95,0.86657735]
[1693590983325,0.17346658,212.66,211.92,0.86657735]
[1693590983519,0.17346658,212.66,211.93,0.86657735]
[1693590984025,5.03700799,212.6,211.94,0.86657735]
[1693590984226,0.17346658,212.59,211.88,0.86657735]
[1693590984420,0.17346658,212.59,211.89,0.86657735]
[1693590984623,0.17346658,212.59,211.87,0.07671798]
[1693590984624,0.17346658,212.59,211.9,0.86657735]
[1693590984817,0.17346658,212.59,211.87,0.07671798]
[1693590984818,0.17346658,212.59,211.88,0.86657735]
[1693590985023,0.17346658,212.59,211.89,0.86657735]
[1693590985220,5.03700799,212.58,211.88,0.86657735]
[1693590985422,0.17346658,212.57,211.89,0.86657735]
[1693590985728,0.17346658,212.57,211.9,0.86657735]
[1693590985927,0.17346658,212.58,211.88,0.94329533]
[1693590986123,5.03700799,212.59,211.89,0.86657735]
[1693590986124,0.17346658,212.57,211.89,0.86657735]
[1693590986324,0.17346658,212.56,211.89,0.86657735]
[1693590986525,5.21047457,212.57,211.89,0.94329533]
[1693590986730,0.17346658,212.56,211.9,0.86657735]
[1693590987625,5.21047457,212.56,211.9,0.94329533]
[1693590987829,0.17346658,212.55,211.91,0.86657735]
[1693590988024,0.17346658,212.55,211.91,0.94329533]
[1693590988225,0.17346658,212.55,211.92,0.86657735]
[1693590988829,5.21047457,212.55,211.92,0.86657735]
[1693590989022,0.17346658,212.54,211.92,0.86657735]
[1693590989532,5.21047457,212.54,211.92,0.94329533]
[1693590989827,0.17346658,212.53,211.93,0.86657735]
[1693590991032,5.21047457,212.53,211.93,0.94329533]
[1693590991231,5.21047457,212.53,211.94,0.86657735]
[1693590991232,0.17346658,212.52,211.94,0.86657735]
[1693590991731,0.17346658,212.52,211.94,0.94329533]
[1693590991930,0.17346658,212.52,211.95,0.86657735]
[1693590992331,5.21047457,212.52,211.95,0.86657735]
[1693590992532,0.17346658,212.51,211.95,0.86657735]
[1693590993032,0.17346658,212.51,211.95,0.94329533]
[1693590993331,0.17346658,212.51,211.99,0.07671798]
[1693590993532,0.17346658,212.56,212.0,0.86657735]
[1693590993731,0.17346658,212.55,212.0,0.86657735]
[1693590993931,0.17346658,212.54,212.0,0.86657735]
[1693590994231,5.03700799,212.57,212.0,0.86657735]
[1693590994232,0.17346658,212.53,212.0,0.86657735]
[1693590994427,0.17346658,212.56,212.0,0.86657735]
[1693590994626,0.17346658,212.55,212.0,0.86657735]
[1693590994833,0.17346658,212.54,212.0,0.86657735]
[1693590995131,0.17346658,212.53,212.0,0.86657735]
[1693590995332,0.17346658,212.56,212.0,0.86657735]
[1693590995533,0.17346658,212.55,212.0,0.86657735]
[1693590995732,0.17346658,212.56,212.0,0.86657735]
[1693590995927,0.17346658,212.55,212.0,0.86657735]
[1693590996133,0.17346658,212.54,212.0,0.86657735]
[1693590996333,5.21047457,212.56,212.0,0.86657735]
[1693590996627,0.17346658,212.55,212.0,0.86657735]
[1693590997231,0.17346658,212.54,211.99,0.07671798]
[1693590997429,0.17346658,212.56,211.99,0.07671798]
[1693590997734,0.17346658,212.55,211.98,0.07671798]
[1693590997934,0.17346658,212.56,211.99,0.86665068]
[1693590998131,5.03700799,212.57,211.95,0.07671798]
[1693590998132,0.17346658,212.55,211.95,0.07671798]
[1693590998434,5.03700799,212.51,211.94,0.07671798]
[1693590998635,0.17346658,212.5,211.93,0.07671798]
[1693590999732,5.03700799,212.49,211.93,0.07671798]
[1693591000033,0.17346658,212.48,211.93,0.07671798]
[1693591001236,0.17346658,212.48,211.99,0.07671798]
[1693591001439,10.0740159,212.6,212.01,0.07671798]
[1693591001440,0.17346658,212.54,212.01,0.07671798]
[1693591001629,0.17346658,212.53,212.02,0.86665881]
[1693591001834,5.03700799,212.57,212.02,0.86665881]
[1693591001835,0.17346658,212.56,212.02,0.86665881]
[1693591002135,0.17346658,212.55,212.01,0.07671798]
[1693591002437,7.05181119,212.6,212.0,0.07671798]
[1693591002438,0.17346658,212.54,212.0,0.07671798]
[1693591002638,0.17346658,212.55,212.01,0.94327218]
[1693591002835,0.17346658,212.54,212.01,0.07671798]
[1693591003037,0.17346658,212.53,212.01,0.07671798]
[1693591003232,0.17346658,212.56,212.01,0.07671798]
[1693591003436,0.17346658,212.55,212.01,0.07671798]
[1693591003632,5.03700799,212.57,212.01,0.07671798]
[1693591003633,0.17346658,212.56,212.01,0.07671798]
[1693591003835,0.17346658,212.55,212.01,0.07671798]
[1693591004033,0.17346658,212.54,212.01,0.07671798]
[1693591004339,0.17346658,212.53,212.01,0.07671798]
[1693591004538,0.17346658,212.55,212.0,0.07671798]
[1693591004739,0.17346658,212.54,212.01,0.86656108]
[1693591004935,0.17346658,212.53,212.01,0.86656108]
[1693591005139,0.17346658,212.52,212.01,0.86656108]
[1693591005339,0.17346658,212.55,212.01,0.86656108]
[1693591005639,0.17346658,212.54,212.01,0.86656108]
[1693591005838,5.03700799,212.56,212.01,0.86656108]
[1693591005839,0.17346658,212.55,212.01,0.86656108]
[1693591006040,0.17346658,212.54,212.01,0.86656108]
[1693591006245,0.17346658,212.53,212.01,0.86656108]
[1693591006447,0.17346658,212.52,212.01,0.94327906]
[1693591006643,5.21047457,212.55,212.02,0.86656108]
[1693591006844,0.17346658,212.54,212.0,0.07671798]
[1693591007146,0.17346658,212.54,212.01,0.86652657]
[1693591008442,0.17346658,212.54,212.01,0.94324455]
[1693591008647,0.17346658,212.54,212.0,0.07671798]
[1693591008948,0.17346658,212.54,212.05,0.07671798]
[1693591009146,0.17346658,212.53,212.06,0.94304615]
[1693591009350,0.17346658,212.59,212.07,0.86632817]
[1693591009552,0.17346658,212.58,212.07,0.86632817]
[1693591009750,0.17346658,212.57,212.07,0.86632817]
[1693591010052,0.17346658,212.56,212.05,0.07671798]
[1693591010348,0.17346658,212.55,212.06,0.8662746]
[1693591010548,5.03700799,212.61,212.06,0.8662746]
[1693591010549,0.17346658,212.6,212.06,0.8662746]
[1693591010748,0.17346658,212.54,212.06,0.8662746]
[1693591010949,0.17346658,212.53,212.06,0.8662746]
[1693591011145,0.17346658,212.52,212.06,0.8662746]
[1693591011350,0.17346658,212.51,212.07,0.8662746]
[1693591011551,0.17346658,212.6,212.05,0.8662746]
[1693591011751,0.17346658,212.59,212.06,0.86630113]
[1693591011949,0.17346658,212.58,212.07,0.86630113]
[1693591012150,0.17346658,212.6,212.04,0.86630113]
[1693591012351,0.17346658,212.59,212.05,0.86630235]
[1693591012545,0.17346658,212.58,212.06,0.86630235]
[1693591012852,0.17346658,212.57,212.07,0.86630235]
[1693591013153,0.17346658,212.56,212.03,0.07671798]
[1693591013352,0.17346658,212.55,212.04,0.86628014]
[1693591013551,0.17346658,212.62,212.04,0.86628014]
[1693591013750,0.17346658,212.61,212.04,0.86628014]
[1693591013952,0.17346658,212.6,212.04,0.86628014]
[1693591014152,0.17346658,212.63,212.04,0.86628014]
[1693591014351,0.17346658,212.62,212.04,0.86628014]
[1693591014552,0.17346658,212.61,212.04,0.86628014]
[1693591014753,0.17346658,212.64,212.04,0.86628014]
[1693591014954,0.17346658,212.63,212.03,0.86628014]
[1693591015252,0.17346658,212.62,212.04,0.86628014]
[1693591015553,0.17346658,212.61,212.05,0.86628014]
[1693591015753,0.17346658,212.64,212.02,0.86628014]
[1693591015953,0.17346658,212.63,212.03,0.86628014]
[1693591016154,0.17346658,212.62,211.96,0.07671798]
[1693591016356,0.17346658,212.61,211.97,0.86649436]
[1693591016553,0.17346658,212.64,211.97,0.86649436]
[1693591016753,5.03700799,212.65,211.97,0.86649436]
[1693591016754,0.17346658,212.63,211.97,0.86649436]
[1693591016955,7.22527777,212.62,211.97,0.86649436]
[1693591017150,0.17346658,212.61,211.98,0.86649436]
[1693591017350,0.17346658,212.61,211.95,0.07671798]
[1693591017351,5.03700799,212.6,211.99,0.86649436]
[1693591017554,0.17346658,212.59,211.96,0.86649436]
[1693591017757,0.17346658,212.59,211.97,0.86649436]
[1693591017957,0.17346658,212.59,211.98,0.86649436]
[1693591018152,0.17346658,212.59,211.99,0.86649436]
[1693591018354,0.17346658,212.59,211.96,0.86649436]
[1693591018653,5.21047457,212.59,211.97,0.86649436]
[1693591018849,0.17346658,212.58,211.96,0.86649436]
[1693591019054,0.17346658,212.58,211.97,0.86649436]
[1693591019357,0.17346658,212.58,211.98,0.86649436]
[1693591019557,0.17346658,212.58,211.99,0.86649436]
[1693591019758,0.17346658,212.58,211.95,0.86649436]
[1693591019956,5.03700799,212.57,211.96,0.86649436]
[1693591020154,0.17346658,212.56,211.94,0.86649436]
[1693591020459,0.17346658,212.56,211.95,0.86649436]
[1693591022557,5.21047457,212.56,211.95,0.86649436]
[1693591022858,0.17346658,212.55,211.95,0.86649436]
[1693591023360,5.07057289,212.56,211.94,0.07687229]
[1693591023553,0.17346658,212.54,211.95,0.86649436]
[1693591023756,0.17346658,212.53,211.95,0.86649436]
[1693591024052,0.17346658,212.52,211.95,0.86649436]
[1693591024258,0.17346658,212.55,211.95,0.86649436]
[1693591024457,0.17346658,212.54,211.95,0.86649436]
[1693591024658,0.17346658,212.55,211.95,0.86649436]
[1693591024858,0.17346658,212.54,211.95,0.86649436]
[1693591025060,0.17346658,212.55,211.95,0.94336665]
[1693591025259,0.17346658,212.54,211.96,0.86649436]
[1693591025559,0.17346658,212.53,211.96,0.86649436]
[1693591025760,0.17346658,212.55,211.96,0.94336665]
[1693591026061,0.17346658,212.54,211.97,0.86649436]
[1693591027159,0.17346658,212.54,211.96,0.86649436]
[1693591027355,0.17346658,212.54,211.97,0.86649436]
[1693591027558,0.17346658,212.54,211.96,0.86649436]
[1693591027757,0.17346658,212.54,211.97,0.86649436]
[1693591027960,0.17346658,212.54,211.96,0.86649436]
[1693591028156,5.07057289,212.53,211.97,0.86649436]
[1693591028362,0.17346658,212.52,211.96,0.86649436]
[1693591028562,0.17346658,212.52,211.97,0.86649436]
[1693591028757,0.17346658,212.52,211.98,0.86649436]
[1693591028956,0.17346658,212.51,211.99,0.86649436]
[1693591029162,0.17346658,212.5,212.0,0.86649436]
[1693591029362,0.17346658,212.5,211.89,0.15374459]
[1693591029363,0.17346658,212.49,212.01,0.86649436]
[1693591029664,0.17346658,212.48,211.96,0.07687229]
[1693591029859,0.17346658,212.53,211.97,0.86652917]
[1693591030058,0.17346658,212.52,211.97,0.94340146]
[1693591030266,0.17346658,212.53,211.98,0.94340146]
[1693591030461,0.17346658,212.51,211.99,0.86652917]
[1693591030767,0.17346658,212.5,211.99,0.86652917]
[1693591030960,0.17346658,212.54,211.98,0.86652917]
[1693591031165,0.17346658,212.53,211.99,0.86652917]
[1693591031359,0.17346658,212.52,212.0,0.86652917]
[1693591031564,0.17346658,212.51,212.01,0.86652917]
[1693591031765,0.17346658,212.5,212.02,0.86652917]
[1693591031963,0.17346658,212.54,211.98,0.86652917]
[1693591032166,0.17346658,212.53,211.99,0.86655571]
[1693591032361,0.17346658,212.52,212.0,0.86655571]
[1693591032565,0.17346658,212.54,211.97,0.86655571]
[1693591032770,5.07057289,212.55,211.98,0.86655571]
[1693591032771,0.17346658,212.53,211.98,0.86655571]
[1693591033070,0.17346658,212.52,211.99,0.86655571]
[1693591033368,0.17346658,212.51,212.0,0.86655571]
[1693591033565,0.17346658,212.5,212.01,0.86655571]
[1693591033762,0.17346658,212.49,211.96,0.07687229]
[1693591033963,0.17346658,212.53,211.97,0.94343463]
[1693591034169,0.17346658,212.52,211.98,0.86656234]
[1693591034369,0.17346658,212.51,211.98,0.86656234]
[1693591034564,0.17346658,212.5,211.99,0.86656234]
[1693591034768,0.17346658,212.49,212.0,0.86656234]
[1693591034966,0.17346658,212.5,211.96,0.07687229]
[1693591035167,0.17346658,212.49,211.97,0.86659457]
[1693591035468,0.17346658,212.48,211.97,0.86659457]
[1693591035671,0.17346658,212.47,211.97,0.86659457]
[1693591035864,0.17346658,212.46,211.98,0.07687229]
[1693591036069,0.17346658,212.45,211.99,0.86659457]
[1693591036270,0.17346658,212.44,211.99,0.86659457]
[1693591036471,0.17346658,212.43,211.99,0.86659457]
[1693591036670,0.17346658,212.48,211.99,0.86659457]
[1693591036872,0.17346658,212.47,211.99,0.86659457]
[1693591037072,0.17346658,212.48,211.99,0.86659457]
[1693591037266,0.17346658,212.47,211.99,0.86659457]
[1693591037465,0.17346658,212.48,211.99,0.86659457]
[1693591037669,5.07057289,212.49,211.98,0.07687229]
[1693591037670,0.17346658,212.47,211.98,0.07687229]
[1693591037972,0.17346658,212.46,211.92,0.07687229]
[1693591038171,0.17346658,212.45,211.93,0.86682852]
[1693591038367,0.17346658,212.44,211.94,0.86682852]
[1693591038571,0.17346658,212.46,211.92,0.86682852]
[1693591038769,5.07057289,212.44,211.93,0.86684623]
[1693591038967,0.17346658,212.43,211.92,0.86684623]
[1693591039166,0.17346658,212.43,211.93,0.8668499]
[1693591039367,0.17346658,212.43,211.9,0.07687229]
[1693591039566,0.17346658,212.43,211.91,0.86685]
[1693591040173,0.17346658,212.45,211.9,0.86685]
[1693591040371,0.17346658,212.44,211.91,0.86685]
[1693591040570,0.17346658,212.45,211.9,0.86685]
[1693591040770,0.17346658,212.44,211.91,0.86685]
[1693591040969,0.17346658,212.43,211.9,0.86685]
[1693591041170,0.17346658,212.45,211.91,0.86685]
[1693591041373,0.17346658,212.44,211.89,0.86685]
[1693591041573,0.17346658,212.45,211.9,0.86685]
[1693591041771,0.17346658,212.44,211.89,0.86685]
[1693591041968,0.17346658,212.45,211.9,0.86685]
[1693591042271,0.17346658,212.44,211.91,0.86685]
[1693591042468,0.17346658,212.43,211.92,0.86685]
[1693591042674,0.17346658,212.45,211.87,0.86685]
[1693591042875,0.17346658,212.44,211.88,0.86691455]
[1693591043075,0.17346658,212.43,211.87,0.86691455]
[1693591043278,0.17346658,212.42,211.88,0.86691455]
[1693591043471,0.17346658,212.45,211.87,0.86691455]
[1693591043673,0.17346658,212.44,211.88,0.86691455]
[1693591043875,0.17346658,212.45,211.87,0.86691455]
[1693591044075,0.17346658,212.44,211.88,0.86691455]
[1693591044278,0.17346658,212.46,211.86,0.86691455]
[1693591044474,0.17346658,212.45,211.87,0.86691455]
[1693591044676,0.17346658,212.46,211.87,0.86691455]
[1693591044875,0.17346658,212.45,211.87,0.86691455]
[1693591045071,0.17346658,212.44,211.87,0.86691455]
[1693591045273,0.17346658,212.43,211.88,0.86691455]
[1693591045471,5.07057289,212.47,211.89,0.86691455]
[1693591045472,0.17346658,212.42,211.89,0.86691455]
[1693591045675,0.17346658,212.41,211.9,0.86691455]
[1693591045976,0.17346658,212.4,211.91,0.86691455]
[1693591046170,0.17346658,212.39,211.92,0.86691455]
[1693591046375,0.17346658,212.46,211.86,0.86691455]
[1693591046574,0.17346658,212.45,211.87,0.86691512]
[1693591046775,0.17346658,212.46,211.86,0.86691512]
[1693591046977,0.17346658,212.45,211.87,0.86691512]
[1693591047172,0.17346658,212.46,211.86,0.86691512]
[1693591047374,0.17346658,212.45,211.87,0.86691512]
[1693591047575,0.17346658,212.46,211.86,0.86691512]
[1693591047776,0.17346658,212.45,211.87,0.86691512]
[1693591047974,0.17346658,212.46,211.86,0.86691512]
[1693591048175,0.17346658,212.45,211.87,0.86691512]
[1693591048472,0.17346658,212.44,211.88,0.86691512]
[1693591048672,0.17346658,212.43,211.86,0.86691512]
[1693591048879,0.17346658,212.47,211.87,0.86691512]
[1693591049179,0.17346658,212.46,211.87,0.86691512]
[1693591049380,0.17346658,212.47,211.87,0.86691512]
[1693591049581,0.17346658,212.46,211.87,0.86691512]
[1693591049781,5.24403947,212.47,211.87,0.86691512]
[1693591050078,0.17346658,212.46,211.87,0.86691512]
[1693591050582,0.17346658,212.46,211.78,0.07687229]
[1693591050775,0.17346658,212.46,211.79,0.94411501]
[1693591050974,0.17346658,212.46,211.8,0.86724272]
[1693591051179,5.07057289,212.41,211.79,0.86724272]
[1693591051380,0.17346658,212.4,211.79,0.86724272]
[1693591052383,7.09880205,212.44,211.79,0.86724272]
[1693591052384,0.17346658,212.42,211.79,0.86724272]
[1693591052584,0.17346658,212.41,211.79,0.86724272]
[1693591052884,0.17346658,212.4,211.79,0.94411501]
[1693591053083,0.17346658,212.4,211.73,0.15374459]
[1693591053084,0.17346658,212.39,211.8,0.94411501]
[1693591053286,0.17346658,212.44,211.81,0.86724272]
[1693591053486,0.17346658,212.43,211.81,0.86724272]
[1693591053685,0.17346658,212.44,211.81,0.86724272]
[1693591053886,7.09880205,212.48,211.81,0.86724272]
[1693591053887,0.17346658,212.43,211.81,0.86724272]
[1693591054184,0.17346658,212.42,211.81,0.86724272]
[1693591054385,0.17346658,212.41,211.81,0.86724272]
[1693591054581,0.17346658,212.4,211.85,0.07687229]
[1693591054786,0.17346658,212.5,211.86,0.86724272]
[1693591054986,5.07057289,212.52,211.86,0.86724272]
[1693591054987,0.17346658,212.49,211.86,0.86724272]
[1693591055190,0.17346658,212.51,211.86,0.94411501]
[1693591055487,0.17346658,212.5,211.87,0.86724272]
[1693591055689,0.17346658,212.51,211.87,0.86724272]
[1693591056989,0.17346658,212.51,211.86,0.86724272]
[1693591057889,0.17346658,212.51,211.86,0.94411501]
[1693591058090,0.17346658,212.51,211.87,0.94411501]
[1693591058389,0.17346658,212.5,211.88,0.86724272]
[1693591058592,0.17346658,212.49,211.88,0.86724272]
[1693591058785,0.17346658,212.48,211.88,0.86724272]
[1693591058990,0.17346658,212.47,211.88,0.86724272]
[1693591059184,0.17346658,212.52,211.88,0.86724272]
[1693591059387,0.17346658,212.51,211.88,0.86724272]
[1693591059590,0.17346658,212.52,211.88,0.86724272]
[1693591059886,0.17346658,212.51,211.88,0.86724272]
[1693591060089,0.17346658,212.52,211.87,0.86724272]
[1693591060290,0.17346658,212.51,211.88,0.86724272]
[1693591060490,0.17346658,212.52,211.87,0.86724272]
[1693591060887,5.24403947,212.52,211.87,0.86724272]
[1693591061087,5.24403947,212.51,211.87,0.86724272]
[1693591061283,0.17346658,212.5,211.87,0.86724272]
[1693591062684,5.07057289,212.46,211.81,0.07687229]
[1693591062890,0.17346658,212.45,211.82,0.86716497]
[1693591064289,0.17346658,212.45,211.83,0.86716497]
[1693591064494,0.17346658,212.45,211.84,0.86716497]
[1693591064792,0.17346658,212.45,211.85,0.86716497]
[1693591064993,0.17346658,212.45,211.81,0.86716497]
[1693591065192,0.17346658,212.45,211.82,0.86716497]
[1693591065391,5.24403947,212.45,211.83,0.86716497]
[1693591065591,0.17346658,212.44,211.84,0.86716497]
[1693591065793,0.17346658,212.44,211.85,0.86716497]
[1693591066090,0.17346658,212.44,211.86,0.86716497]
[1693591066290,0.17346658,212.44,211.81,0.07687229]
[1693591066492,0.17346658,212.44,211.82,0.86719761]
[1693591067892,0.17346658,212.43,211.82,0.86719761]
[1693591068093,7.09880205,212.48,211.82,0.9440699]
[1693591068094,5.24403947,212.45,211.82,0.9440699]
[1693591068287,0.17346658,212.44,211.83,0.86719761]
[1693591069293,0.17346658,212.44,211.83,0.9440699]
[1693591069489,0.17346658,212.44,211.84,0.86719761]
[1693591070995,0.17346658,212.44,211.84,0.9440699]
[1693591071196,0.17346658,212.44,211.85,0.86719761]
[1693591071796,0.17346658,212.44,211.84,0.86719761]
[1693591071993,0.17346658,212.44,211.85,0.86722098]
[1693591072199,5.07057289,212.43,211.85,0.86722098]
[1693591072498,0.17346658,212.42,211.85,0.86722098]
[1693591073999,5.24403947,212.42,211.85,0.86722098]
[1693591074197,0.17346658,212.41,211.85,0.86722098]
[1693591075995,0.17346658,212.41,211.83,0.07687229]
[1693591076200,5.24403947,212.41,211.84,0.86723146]
[1693591076401,0.17346658,212.4,211.84,0.86723146]
[1693591077397,0.17346658,212.4,211.83,0.94410375]
[1693591077604,0.17346658,212.4,211.84,0.86722922]
[1693591077803,5.24403947,212.4,211.84,0.86722922]
[1693591078000,0.17346658,212.39,211.84,0.86722922]
[1693591080102,0.17346658,212.38,211.84,0.86722922]
[1693591080306,5.07057289,212.41,211.84,0.86722922]
[1693591080307,0.17346658,212.4,211.84,0.86722922]
[1693591080497,0.17346658,212.39,211.84,0.86722922]
[1693591080700,0.17346658,212.4,211.84,0.86722922]